fUST/lending_fUST_20250513
["ID","MTS","AMOUNT","RATE_DAILY","PERIOD"]
[360883257,1747098652467,-302.039964,0.00019452,2]
[360883258,1747098652477,-302.039964,0.00019452,2]
[360883259,1747098652487,-400.0,0.00019452,2]
[360883260,1747098652497,-151.0,0.00019452,2]
[360883261,1747098652506,-151.0,0.00019452,2]
[360883262,1747098652515,-302.039964,0.00019452,2]
[360883263,1747098652525,-151.0,0.00019452,2]
[360883264,1747098652535,-302.039964,0.00019452,2]
[360883265,1747098652544,-240.836856,0.00019452,2]
[360883266,1747098652553,-205.7761851,0.00019452,2]
[360883267,1747098652563,-302.039964,0.00019452,2]
[360883268,1747098652572,-713.11,0.00019452,2]
[360883269,1747098652582,-302.039964,0.00019452,2]
[360883270,1747098652591,-302.039964,0.00019452,2]
[360883271,1747098652600,-302.039955,0.00019452,2]
[360883272,1747098652611,-151.0,0.00019452,2]
[360883273,1747098652624,-151.0,0.00019452,2]
[360883274,1747098652634,-151.0,0.00019452,2]
[360883275,1747098652643,-151.0,0.00019452,2]
[360883276,1747098652652,-230.122018,0.00019452,2]
[360883277,1747098652662,-400.0,0.00019452,2]
[360883278,1747098652671,-716.75,0.00019452,2]
[360883279,1747098652681,-400.0,0.00019452,2]
[360883280,1747098652691,-1064.66,0.00019452,2]
[360883281,1747098652701,-400.0,0.00019452,2]
[360883282,1747098652710,-3720.23,0.00019452,2]
[360883283,1747098652721,-541.25,0.00019452,2]
[360883284,1747098652730,-614.79,0.00019452,2]
[360883285,1747098652740,-4673.87,0.00019452,2]
[360883286,1747098652749,-400.0,0.00019452,2]
[360883287,1747098652759,-1007.11,0.00019452,2]
[360883288,1747098652769,-400.0,0.00019452,2]
[360883289,1747098652778,-517.23,0.00019452,2]
[360883290,1747098652788,-754.27,0.00019452,2]
[360883291,1747098652798,-400.0,0.00019452,2]
[360883292,1747098652807,-24496.19,0.00019452,2]
[360883293,1747098652817,-3610.14,0.00019452,2]
[360883294,1747098652826,-400.0,0.00019452,2]
[360883295,1747098652835,-4233.14,0.00019452,2]
[360883296,1747098652844,-604.94,0.00019452,2]
[360883297,1747098652854,-451.91,0.00019452,2]
[360883298,1747098652865,-400.0,0.00019452,2]
[360883299,1747098652874,-1321.07,0.00019452,2]
[360883300,1747098652883,-1744.42,0.00019452,2]
[360883301,1747098652893,-1013.54,0.00019452,2]
[360883302,1747098652901,-400.0,0.00019452,2]
[360883303,1747098652912,-716.19,0.00019452,2]
[360883304,1747098652924,-400.0,0.00019452,2]
[360883305,1747098652934,-400.0,0.00019452,2]
[360883306,1747098652943,-4858.27,0.00019452,2]
[360883307,1747098652952,-400.0,0.00019452,2]
[360883308,1747098652961,-400.0,0.00019452,2]
[360883309,1747098652971,-400.0,0.00019452,2]
[360883310,1747098652982,-568.61,0.00019452,2]
[360883311,1747098652991,-1247.84,0.00019452,2]
[360883312,1747098653000,-181.999241,0.00019452,2]
[360883313,1747098653011,-709.17,0.00019452,2]
[360883314,1747098653020,-181.999241,0.00019452,2]
[360883315,1747098653030,-181.999241,0.00019452,2]
[360883316,1747098653039,-466.35,0.00019452,2]
[360883317,1747098653048,-181.999241,0.00019452,2]
[360883318,1747098653057,-181.999241,0.00019452,2]
[360883319,1747098653067,-717.9,0.00019452,2]
[360883320,1747098653076,-181.999241,0.00019452,2]
[360883321,1747098653085,-712.83,0.00019452,2]
[360883322,1747098653094,-400.0,0.00019452,2]
[360883323,1747098653104,-181.999241,0.00019452,2]
[360883324,1747098653114,-181.999241,0.00019452,2]
[360883325,1747098653123,-181.999241,0.00019452,2]
[360883326,1747098653132,-181.999241,0.00019452,2]
[360883327,1747098653141,-400.0,0.00019452,2]
[360883328,1747098653153,-181.999241,0.00019452,2]
[360883329,1747098653162,-400.0,0.00019452,2]
[360883330,1747098653171,-181.999248,0.00019452,2]
[360883331,1747098653180,-3067.68,0.00019452,2]
[360883332,1747098653189,-331.76105291,0.00019452,2]
[360883333,1747098653198,-400.0,0.00019452,2]
[360883334,1747098653207,-1326.76,0.00019452,2]
[360883335,1747098653216,-400.0,0.00019452,2]
[360883336,1747098653225,-1721.49,0.00019452,2]
[360883337,1747098653234,-400.0,0.00019452,2]
[360883338,1747098653245,-429.34,0.00019452,2]
[360883339,1747098653254,-2064.72,0.00019452,2]
[360883340,1747098653263,-400.0,0.00019452,2]
[360883341,1747098653273,-400.0,0.00019452,2]
[360883342,1747098653282,-3823.26,0.00019452,2]
[360883343,1747098653292,-400.0,0.00019452,2]
[360883344,1747098653301,-1048.59,0.00019452,2]
[360883345,1747098653310,-9346.88,0.00019452,2]
[360883346,1747098653319,-471.4,0.00019452,2]
[360883347,1747098653329,-400.0,0.00019452,2]
[360883348,1747098653338,-400.0,0.00019452,2]
[360883349,1747098653347,-400.0,0.00019452,2]
[360883350,1747098653359,-400.0,0.00019452,2]
[360883351,1747098653370,-1000.0,0.00019452,2]
[360883352,1747098653379,-400.0,0.00019452,2]
[360883353,1747098653390,-638.7,0.00019452,2]
[360883354,1747098653401,-400.0,0.00019452,2]
[360883355,1747098653411,-644.17,0.00019452,2]
[360883356,1747098653420,-400.0,0.00019452,2]
[360883357,1747098653429,-764.67,0.00019452,2]
[360883358,1747098653439,-400.0,0.00019452,2]
[360883359,1747098653449,-400.0,0.00019452,2]
[360883360,1747098653459,-400.0,0.00019452,2]
[360883361,1747098653468,-400.0,0.00019452,2]
[360883362,1747098653478,-400.0,0.00019452,2]
[360883363,1747098653696,-1852.63,0.00019452,2]
[360883364,1747098653707,-400.0,0.00019452,2]
[360883365,1747098653718,-400.0,0.00019452,2]
[360883366,1747098653728,-3343.27,0.00019452,2]
[360883367,1747098653738,-18641.87,0.00019452,2]
[360883368,1747098653747,-400.0,0.00019452,2]
[360883369,1747098653757,-568.7,0.00019452,2]
[360883370,1747098653767,-1438.54,0.00019452,2]
[360883371,1747098653777,-1203.72,0.00019452,2]
[360883372,1747098653787,-400.0,0.00019452,2]
[360883373,1747098653796,-1647.59,0.00019452,2]
[360883374,1747098653806,-3331.36,0.00019452,2]
[360883375,1747098653816,-678.97,0.00019452,2]
[360883376,1747098653826,-985.38,0.00019452,2]
[360883377,1747098653836,-1723.53,0.00019452,2]
[360883378,1747098653845,-2599.48,0.00019452,2]
[360883379,1747098653855,-485.54,0.00019452,2]
[360883380,1747098653866,-400.0,0.00019452,2]
[360883381,1747098653876,-831.01,0.00019452,2]
[360883382,1747098653886,-400.0,0.00019452,2]
[360883383,1747098653895,-470.93622625,0.00019452,2]
[360883384,1747098653905,-400.0,0.00019452,2]
[360883385,1747098653915,-300.0,0.00019452,2]
[360883386,1747098653924,-400.0,0.00019452,2]
[360883387,1747098653935,-613.57,0.00019452,2]
[360883388,1747098653944,-1155.91,0.00019452,2]
[360883389,1747098653954,-1706.38,0.00019452,2]
[360883390,1747098653963,-876.72,0.00019452,2]
[360883391,1747098653974,-1422.84,0.00019452,2]
[360883392,1747098653984,-487.51,0.00019452,2]
[360883393,1747098653995,-8056.32,0.00019452,2]
[360883394,1747098654005,-572.98,0.00019452,2]
[360883395,1747098654015,-400.0,0.00019452,2]
[360883396,1747098654025,-3057.92,0.00019452,2]
[360883397,1747098654034,-3714.45,0.00019452,2]
[360883398,1747098654044,-1202.43,0.00019452,2]
[360883399,1747098654053,-526.92,0.00019452,2]
[360883400,1747098654062,-400.0,0.00019452,2]
[360883401,1747098654071,-437.94,0.00019452,2]
[360883402,1747098654080,-400.0,0.00019452,2]
[360883403,1747098654090,-507.58,0.00019452,2]
[360883404,1747098654099,-629.99,0.00019452,2]
[360883405,1747098654109,-400.0,0.00019452,2]
[360883406,1747098654119,-807.16,0.00019452,2]
[360883407,1747098654128,-8151.22,0.00019452,2]
[360883408,1747098654138,-1855.2,0.00019452,2]
[360883409,1747098654147,-821.68,0.00019452,2]
[360883410,1747098654156,-400.0,0.00019452,2]
[360883411,1747098654165,-979.34,0.00019452,2]
[360883412,1747098654174,-400.0,0.00019452,2]
[360883413,1747098654183,-3486.9,0.00019452,2]
[360883414,1747098654192,-626.96,0.00019452,2]
[360883415,1747098654201,-775.44,0.00019452,2]
[360883416,1747098654210,-1359.11,0.00019452,2]
[360883417,1747098654219,-400.0,0.00019452,2]
[360883418,1747098654228,-524.41,0.00019452,2]
[360883419,1747098654237,-1626.94,0.00019452,2]
[360883420,1747098654246,-400.0,0.00019452,2]
[360883421,1747098654255,-563.49,0.00019452,2]
[360883422,1747098654265,-400.0,0.00019452,2]
[360883423,1747098654274,-400.0,0.00019452,2]
[360883424,1747098654283,-539.81,0.00019452,2]
[360883425,1747098654293,-6642.74,0.00019452,2]
[360883426,1747098654303,-400.0,0.00019452,2]
[360883427,1747098654312,-779.48,0.00019452,2]
[360883428,1747098654321,-400.0,0.00019452,2]
[360883429,1747098654331,-400.0,0.00019452,2]
[360883430,1747098654341,-4739.46,0.00019452,2]
[360883431,1747098654351,-400.0,0.00019452,2]
[360883432,1747098654363,-400.0,0.00019452,2]
[360883433,1747098654374,-1341.71,0.00019452,2]
[360883434,1747098654383,-400.0,0.00019452,2]
[360883435,1747098654393,-400.0,0.00019452,2]
[360883436,1747098654402,-457.1,0.00019452,2]
[360883437,1747098654412,-545.91,0.00019452,2]
[360883438,1747098654421,-400.0,0.00019452,2]
[360883439,1747098654431,-305.247455,0.00019452,2]
[360883440,1747098654440,-400.0,0.00019452,2]
[360883441,1747098654449,-400.0,0.00019452,2]
[360883442,1747098654459,-400.0,0.00019452,2]
[360883443,1747098654469,-471.18,0.00019452,2]
[360883444,1747098654478,-400.0,0.00019452,2]
[360883445,1747098654487,-642.64,0.00019452,2]
[360883446,1747098654498,-2340.51,0.00019452,2]
[360883447,1747098654508,-946.32,0.00019452,2]
[360883448,1747098654518,-400.0,0.00019452,2]
[360883449,1747098654529,-2686.0,0.00019452,2]
[360883450,1747098654538,-400.0,0.00019452,2]
[360883451,1747098654548,-216.92154,0.00019452,2]
[360883452,1747098654557,-216.92154,0.00019452,2]
[360883453,1747098654567,-216.92154,0.00019452,2]
[360883454,1747098654576,-216.92154,0.00019452,2]
[360883455,1747098654586,-216.92154,0.00019452,2]
[360883456,1747098654596,-400.0,0.00019452,2]
[360883457,1747098654606,-400.0,0.00019452,2]
[360883458,1747098654620,-400.0,0.00019452,2]
[360883459,1747098654630,-517.13,0.00019452,2]
[360883460,1747098654639,-216.92154,0.00019452,2]
[360883461,1747098654648,-216.92154,0.00019452,2]
[360883462,1747098654659,-216.92154,0.00019452,2]
[360883463,1747098654668,-216.92154,0.00019452,2]
[360883464,1747098654678,-424.83812002,0.00019452,2]
[360883465,1747098654690,-216.921538,0.00019452,2]
[360883466,1747098654699,-7465.02,0.00019452,2]
[360883467,1747098654708,-1685.03,0.00019452,2]
[360883468,1747098654717,-400.0,0.00019452,2]
[360883469,1747098654727,-400.0,0.00019452,2]
[360883470,1747098654736,-400.0,0.00019452,2]
[360883471,1747098654746,-400.0,0.00019452,2]
[360883472,1747098654755,-1283.06,0.00019452,2]
[360883473,1747098654764,-400.0,0.00019452,2]
[360883474,1747098654774,-400.0,0.00019452,2]
[360883475,1747098654783,-3099.74,0.00019452,2]
[360883476,1747098654792,-2221.98,0.00019452,2]
[360883477,1747098654801,-3839.53,0.00019452,2]
[360883478,1747098654811,-400.0,0.00019452,2]
[360883479,1747098654820,-400.0,0.00019452,2]
[360883480,1747098654829,-1229.23,0.00019452,2]
[360883481,1747098654838,-203.62287485,0.00019452,2]
[360883482,1747098654847,-401.6,0.00019452,2]
[360883483,1747098654857,-400.0,0.00019452,2]
[360883484,1747098654866,-400.0,0.00019452,2]
[360883485,1747098654875,-400.0,0.00019452,2]
[360883486,1747098654884,-3463.48,0.00019452,2]
[360883487,1747098654894,-1524.15,0.00019452,2]
[360883488,1747098654903,-400.0,0.00019452,2]
[360883489,1747098654912,-400.0,0.00019452,2]
[360883490,1747098654922,-306.42522055,0.00019452,2]
[360883491,1747098654931,-7788.88,0.00019452,2]
[360883492,1747098654941,-400.0,0.00019452,2]
[360883493,1747098654950,-3769.52,0.00019452,2]
[360883494,1747098654960,-3953.95,0.00019452,2]
[360883495,1747098654969,-183.81354155,0.00019452,2]
[360883496,1747098655873,-160.0,0.00017872,2]
[360883497,1747098655883,-400.0,0.00019178,2]
[360883498,1747098655892,-579.35,0.00019238,7]
[360883499,1747098655902,-2716.36645845,0.00019452,2]
[360883500,1747098655912,-4457.56854155,0.00019452,2]
[360883501,1747098655923,-3452.02384138,0.00019452,2]
[360883502,1747098655935,-3159.94761707,0.00019452,2]
[360883503,1747098655944,-1048.43,0.00019452,2]
[360883504,1747098655953,-35.99988108,0.00019452,2]
[360883505,1747098656052,-364.00011892,0.00019452,2]
[360883506,1747098656062,-494.27,0.00019452,2]
[360883507,1747098656071,-747.58,0.00019452,2]
[360883508,1747098656080,-400.0,0.00019452,2]
[360883509,1747098656090,-400.0,0.00019452,2]
[360883510,1747098656099,-3990.9835071,0.00019452,2]
[360883511,1747098658872,1552.0,0.0002,120]
[360883517,1747099637117,-954.20768788,0.00013562,2]
[360883518,1747099637138,-358.777052,0.00013699,2]
[360883519,1747099637159,-300.0,0.00013914,2]
[360883520,1747099637183,-500.0,0.00013915,2]
[360883521,1747099637205,-500.0,0.00013915,2]
[360883522,1747099637226,-460.50804856,0.00013915,2]
[360883523,1747099637246,-169.48982152,0.00013915,2]
[360883524,1747099637266,-444.96233376,0.00013915,2]
[360883525,1747099637288,-500.0,0.00013915,2]
[360883526,1747099637312,-500.0,0.00013915,2]
[360883527,1747099637334,-500.0,0.00013915,2]
[360883528,1747099637356,-500.0,0.00013915,2]
[360883529,1747099637378,-541.42963536,0.00013915,2]
[360883530,1747099637400,-500.0,0.00013915,2]
[360883531,1747099637424,-500.0,0.00013915,2]
[360883532,1747099637445,-500.0,0.00013915,2]
[360883533,1747099637468,-500.0,0.00013915,2]
[360883534,1747099637490,-500.0,0.00013915,2]
[360883535,1747099637512,-500.0,0.00013915,2]
[360883536,1747099637535,-500.0,0.00013915,2]
[360883537,1747099637557,-500.0,0.00013915,2]
[360883538,1747099637578,-241.78615289,0.00013915,2]
[360883539,1747099637600,-500.0,0.00013915,2]
[360883540,1747099637623,-500.0,0.00013915,2]
[360883541,1747099637646,-500.0,0.00013915,2]
[360883542,1747099637669,-500.0,0.00013915,2]
[360883543,1747099637691,-500.0,0.00013915,2]
[360883544,1747099637714,-500.0,0.00013915,2]
[360883545,1747099637737,-500.0,0.00013915,2]
[360883546,1747099637760,-500.0,0.00013915,2]
[360883547,1747099637783,-500.0,0.00013915,2]
[360883548,1747099637805,-500.0,0.00013915,2]
[360883549,1747099637829,-500.0,0.00013915,2]
[360883550,1747099637852,-500.0,0.00013915,2]
[360883551,1747099637875,-500.0,0.00013915,2]
[360883552,1747099637898,-500.0,0.00013915,2]
[360883553,1747099637924,-500.0,0.00013915,2]
[360883554,1747099637949,-500.0,0.00013915,2]
[360883555,1747099637972,-469.18300227,0.00013915,2]
[360883556,1747099649412,-30.81699773,0.00013915,2]
[360883557,1747099649439,-223.55104618,0.00013915,2]
[360883558,1747099650128,-276.44895382,0.00013915,2]
[360883559,1747099650151,-500.0,0.00013915,2]
[360883560,1747099650176,-1174.0,0.00013916,2]
[360883561,1747099650198,-2334.1797921,0.00013917,2]
[360883562,1747099652105,-4977.95085046,0.00013917,2]
[360883563,1747099714315,-714.5379853,0.0002001,120]
[360883564,1747099714605,-2127.85639287,0.00022001,120]
[360883565,1747099715070,-14315.21124366,0.00022001,120]
[360883566,1747099757209,-300.0,0.00013916,2]
[360883567,1747099757232,-500.0,0.00013916,2]
[360883568,1747099757258,-226.82551504,0.00013916,2]
[360883569,1747099757279,-500.0,0.00013916,2]
[360883570,1747099757301,-500.0,0.00013916,2]
[360883571,1747099757322,-193.53179477,0.00013916,2]
[360883572,1747099757342,-13685.33571019,0.00013917,2]
[360883610,1747099832346,-2528.33210855,0.00013917,2]
[360883612,1747099832356,-2139.893447,0.00014466,2]
[360883614,1747099832366,-1000.0,0.00014602,2]
[360883616,1747099832375,-179.89206476,0.00014685,2]
[360883618,1747099832385,-300.0,0.00014899,2]
[360883620,1747099832395,-591.89,0.000149,2]
[360883622,1747099832404,-11277.78949482,0.000149,2]
[360883625,1747099832414,-11277.78949467,0.00015245,2]
[360883628,1747099832423,-500.0,0.00015586,2]
[360883630,1747099832432,-500.0,0.00015586,2]
[360883634,1747099832442,-266.15000287,0.00015586,2]
[360883637,1747099832452,-622.25924655,0.00015586,2]
[360883639,1747099832461,-500.0,0.00015586,2]
[360883642,1747099832471,-158.55371226,0.00015586,2]
[360883645,1747099832480,-11277.78949467,0.0001559,2]
[360883648,1747099832490,-11277.78949467,0.00015934,2]
[360883650,1747099832499,-1000.0,0.00015972,2]
[360883652,1747099832509,-9439.18347811,0.00016,2]
[360883654,1747099832518,-208.56507773,0.00016,2]
[360883656,1747099832528,-11277.78949467,0.00016279,2]
[360883658,1747099832538,-420.0,0.00016308,2]
[360883660,1747099832547,-500.0,0.00016438,2]
[360883662,1747099832556,-500.0,0.00016438,2]
[360883664,1747099832565,-639.31682384,0.00016438,2]
[360883666,1747099832578,-562.105165,0.00016438,2]
[360883668,1747099832588,-250.00742704,0.00016438,2]
[360883670,1747099832598,-160.0,0.00016613,2]
[360883672,1747099832608,-11277.78949467,0.00016624,2]
[360883674,1747099832617,-153.29939954,0.000168,2]
[360883676,1747099832627,-11277.78949467,0.00016969,2]
[360883678,1747099832637,-161.15,0.0001699,3]
[360883680,1747099832647,-1000.0,0.00017,2]
[360883682,1747099832656,-75708.84685035,0.00017,2]
[360883684,1747099832668,-15673.41047768,0.00017,2]
[360883686,1747099832678,-11277.78949467,0.00017314,2]
[360883688,1747099832688,-1000.0,0.00017342,2]
[360883690,1747099832698,-2062.88764344,0.000176,2]
[360883692,1747099832707,-1289.17,0.00017649,3]
[360883694,1747099832717,-11277.78949467,0.00017659,2]
[360883696,1747099832727,-587.0,0.0001785,2]
[360883698,1747099832736,-160.0,0.00017868,2]
[360883700,1747099832746,-160.0,0.00017868,2]
[360883702,1747099832755,-160.0,0.00017868,2]
[360883704,1747099832765,-422.20096692,0.00017868,2]
[360883706,1747099832775,-997.78101552,0.00017868,2]
[360883708,1747099832786,-160.0,0.00017868,2]
[360883710,1747099832795,-160.0,0.00017868,2]
[360883712,1747099832805,-160.0,0.00017868,2]
[360883714,1747099832815,-12623.54026388,0.00017868,2]
[360883716,1747099832826,-160.0,0.00017868,2]
[360883718,1747099832836,-160.0,0.00017868,2]
[360883720,1747099832846,-212.17074216,0.00017868,2]
[360883722,1747099832855,-160.0,0.00017868,2]
[360883724,1747099832865,-644.58,0.0001799,3]
[360883726,1747099832875,-322.29,0.0001799,3]
[360883728,1747099832884,-483.47,0.0001799,3]
[360883730,1747099832894,-3867.5,0.00017993,3]
[360883732,1747099832903,-500.0,0.00018,2]
[360883734,1747099832913,-155883.1828098,0.00018,2]
[360883736,1747099832922,-6325.17650992,0.00018,2]
[360883738,1747099832931,-11277.78949467,0.00018003,2]
[360883740,1747099832941,-11277.78949467,0.00018348,2]
[360883742,1747099832950,-322.3,0.0001836,3]
[360883744,1747099832961,-1000.0,0.00018438,2]
[360883746,1747099832970,-500.46392195,0.00018503,5]
[360883748,1747099832980,-452.0386591,0.0001863,2]
[360883750,1747099832991,-11277.78949467,0.00018693,2]
[360883752,1747099833000,-39668.29986408,0.00018919,2]
[360883754,1747099833010,-163.35,0.00018966,2]
[360883756,1747099833020,-176.817,0.00018966,2]
[360883758,1747099833030,-2001.0,0.00019,2]
[360883760,1747099833040,-3867.5,0.00019019,3]
[360883762,1747099833050,-2578.34,0.00019019,3]
[360883764,1747099833061,-11277.78949467,0.00019038,2]
[360883766,1747099833072,-151.0,0.000191,2]
[360883768,1747099833084,-151.0,0.000191,2]
[360883770,1747099833094,-151.0,0.000191,2]
[360883772,1747099833106,-151.0,0.000191,2]
[360883774,1747099833117,-151.0,0.000191,2]
[360883776,1747099833126,-410.26983227,0.00019173,2]
[360883778,1747099833137,-500.0,0.00019173,2]
[360883780,1747099833147,-1000.0,0.00019173,2]
[360883782,1747099833158,-500.0,0.00019173,2]
[360883784,1747099833168,-390.5069289,0.00019173,2]
[360883786,1747099833178,-500.0,0.00019173,2]
[360883788,1747099833188,-500.0,0.00019173,2]
[360883790,1747099833198,-500.0,0.00019173,2]
[360883792,1747099833209,-500.0,0.00019173,2]
[360883794,1747099833220,-500.0,0.00019173,2]
[360883796,1747099833230,-500.0,0.00019173,2]
[360883798,1747099833242,-500.0,0.00019173,2]
[360883800,1747099833252,-500.0,0.00019173,2]
[360883802,1747099833262,-500.0,0.00019173,2]
[360883804,1747099833273,-500.0,0.00019173,2]
[360883806,1747099833283,-500.0,0.00019173,2]
[360883808,1747099833292,-500.0,0.00019173,2]
[360883810,1747099833302,-432.03790855,0.00019173,2]
[360883812,1747099833312,-151.0,0.00019178,2]
[360883814,1747099833322,-151.0,0.00019178,2]
[360883816,1747099833341,-151.0,0.00019178,2]
[360883818,1747099833350,-151.0,0.00019178,2]
[360883820,1747099833360,-151.0,0.00019178,2]
[360883822,1747099833371,-151.0,0.00019178,2]
[360883824,1747099833382,-400.0,0.00019178,2]
[360883826,1747099833392,-400.0,0.00019178,2]
[360883828,1747099833402,-400.0,0.00019178,2]
[360883830,1747099833413,-400.0,0.00019178,2]
[360883832,1747099833423,-479.83,0.00019178,2]
[360883834,1747099833433,-400.0,0.00019178,2]
[360883836,1747099833443,-408.30198797,0.00019178,2]
[360883838,1747099833453,-400.0,0.00019178,2]
[360883840,1747099833463,-583.35,0.00019178,2]
[360883843,1747099833474,-400.0,0.00019178,2]
[360883844,1747099833484,-633.44,0.00019178,2]
[360883846,1747099833495,-500.0,0.00019178,2]
[360883849,1747099833507,-400.0,0.00019178,2]
[360883851,1747099833518,-400.0,0.00019178,2]
[360883853,1747099833530,-400.0,0.00019178,2]
[360883855,1747099833542,-400.0,0.00019178,2]
[360883857,1747099833553,-400.0,0.00019178,2]
[360883859,1747099833565,-500.0,0.00019178,2]
[360883861,1747099833576,-332.12263078,0.00019178,2]
[360883862,1747099833587,-1483.19,0.00019178,2]
[360883864,1747099833597,-400.0,0.00019178,2]
[360883866,1747099833608,-630.48,0.00019178,2]
[360883868,1747099833618,-1023.82,0.00019178,2]
[360883870,1747099833629,-400.0,0.00019178,2]
[360883872,1747099833640,-400.0,0.00019178,2]
[360883874,1747099833650,-400.0,0.00019178,2]
[360883876,1747099833660,-503.0,0.00019178,2]
[360883878,1747099833671,-520.6332357,0.00019178,2]
[360883880,1747099833681,-400.0,0.00019178,2]
[360883882,1747099833691,-400.0,0.00019178,2]
[360883884,1747099833702,-400.0,0.00019178,2]
[360883886,1747099833713,-435.05,0.00019178,2]
[360883888,1747099833723,-400.0,0.00019178,2]
[360883890,1747099833733,-840.1,0.00019178,2]
[360883892,1747099833743,-509.68625141,0.00019178,2]
[360883894,1747099833753,-400.0,0.00019178,2]
[360883896,1747099833764,-735.94,0.00019178,2]
[360883898,1747099833775,-647.53,0.00019178,2]
[360883900,1747099833785,-1061.73,0.00019178,2]
[360883902,1747099833796,-400.0,0.00019178,2]
[360883904,1747099833806,-400.0,0.00019178,2]
[360883906,1747099833817,-400.0,0.00019178,2]
[360883908,1747099833832,-402.09,0.00019178,2]
[360883910,1747099833842,-400.0,0.00019178,2]
[360883912,1747099833853,-400.0,0.00019178,2]
[360883914,1747099833863,-400.0,0.00019178,2]
[360883916,1747099833873,-1196.45,0.00019178,2]
[360883918,1747099833883,-228.81048963,0.00019178,2]
[360883920,1747099833893,-400.0,0.00019178,2]
[360883922,1747099833904,-400.0,0.00019178,2]
[360883924,1747099833914,-964.41,0.00019178,2]
[360883926,1747099833924,-400.0,0.00019178,2]
[360883928,1747099833934,-400.0,0.00019178,2]
[360883930,1747099833945,-180.18711549,0.00019178,2]
[360883932,1747099833955,-266.70446847,0.00019178,2]
[360883934,1747099833968,-1000.0,0.00019178,2]
[360883936,1747099833978,-400.0,0.00019178,2]
[360883938,1747099833988,-686.08,0.00019178,2]
[360883940,1747099834000,-400.0,0.00019178,2]
[360883942,1747099834010,-2472.13,0.00019178,2]
[360883944,1747099834020,-586.29,0.00019178,2]
[360883946,1747099834031,-617.66,0.00019178,2]
[360883948,1747099834040,-400.0,0.00019178,2]
[360883950,1747099834051,-400.0,0.00019178,2]
[360883952,1747099834062,-358.0,0.00019178,2]
[360883954,1747099834075,-400.0,0.00019178,2]
[360883956,1747099834084,-400.0,0.00019178,2]
[360883958,1747099834094,-400.0,0.00019178,2]
[360883960,1747099834104,-400.0,0.00019178,2]
[360883962,1747099834113,-485.41,0.00019178,2]
[360883964,1747099834123,-400.0,0.00019178,2]
[360883966,1747099834133,-513.96256375,0.00019178,2]
[360883968,1747099834143,-1210.56,0.00019178,2]
[360883970,1747099834153,-400.0,0.00019178,2]
[360883972,1747099834163,-400.0,0.00019178,2]
[360883974,1747099834174,-600.97,0.00019178,2]
[360883976,1747099834184,-400.0,0.00019178,2]
[360883978,1747099834194,-400.0,0.00019178,2]
[360883980,1747099834204,-400.0,0.00019178,2]
[360883982,1747099834214,-400.0,0.00019178,2]
[360883984,1747099834224,-1848.9,0.00019178,2]
[360883986,1747099834234,-309.78258117,0.00019178,2]
[360883988,1747099834244,-400.0,0.00019178,2]
[360883990,1747099834255,-400.0,0.00019178,2]
[360883992,1747099834265,-400.0,0.00019178,2]
[360883994,1747099834275,-932.14,0.00019178,2]